fUSD/lending_fUSD_20241026
["ID","MTS","AMOUNT","RATE_DAILY","PERIOD"]
[340860573,1729954238955,-500.0,0.00056986,120]
[340860575,1729954238967,-500.0,0.00056986,120]
[340860576,1729954238976,-500.0,0.00056986,120]
[340860578,1729954238985,-500.0,0.00056986,120]
[340860580,1729954238994,-500.0,0.00056986,120]
[340860582,1729954239003,-500.0,0.00056986,120]
[340860584,1729954239013,-500.0,0.00056986,120]
[340860586,1729954239022,-500.0,0.00056986,120]
[340860587,1729954239031,-516.96,0.00056986,120]
[340860589,1729954239041,-713.46,0.00056986,120]
[340860591,1729954239051,-794.58,0.00056986,120]
[340860593,1729954239060,-2426.54,0.00056986,120]
[340860595,1729954239070,-1382.79,0.00056986,120]
[340860597,1729954239080,-500.0,0.00056986,120]
[340860599,1729954239089,-2462.02,0.00056986,120]
[340860601,1729954239098,-500.0,0.00056986,120]
[340860602,1729954239108,-500.0,0.00056986,21]
[340860604,1729954239118,-500.0,0.00056986,120]
[340860606,1729954239127,-799.22,0.00056986,120]
[340860608,1729954239137,-500.0,0.00056986,3]
[340860610,1729954239146,-543.0,0.00056986,120]
[340860612,1729954239155,-1479.17,0.00056986,120]
[340860614,1729954239165,-1101.66,0.00056986,120]
[340860615,1729954239177,-1000.0,0.00056986,120]
[340860616,1729954239188,-257.28690093,0.00056986,120]
[340860617,1729954239198,-500.0,0.00056986,120]
[340860618,1729954239207,-500.0,0.00056986,120]
[340860619,1729954239216,-500.0,0.00056986,120]
[340860620,1729954239226,-500.0,0.00056986,120]
[340860621,1729954239235,-500.0,0.00056986,120]
[340860622,1729954239245,-834.96,0.00056986,120]
[340860623,1729954239259,-500.0,0.00056986,120]
[340860624,1729954239269,-500.0,0.00056986,120]
[340860625,1729954239279,-500.0,0.00056986,120]
[340860626,1729954239288,-500.0,0.00056986,120]
[340860627,1729954239297,-500.0,0.00056986,120]
[340860628,1729954239307,-923.12,0.00056986,120]
[340860629,1729954239316,-500.0,0.00056986,120]
[340860630,1729954239324,-210.0,0.0005713,30]
[340860631,1729954239334,-221.079,0.0005741,112]
[340860633,1729954239343,-1000.0,0.00057433,14]
[340860634,1729954239352,-500.0,0.00057534,120]
[340860635,1729954239361,-500.0,0.00057534,120]
[340860636,1729954239370,-500.0,0.00057534,120]
[340860637,1729954239380,-560.58623445,0.00057534,120]
[340860638,1729954239389,-500.0,0.00057534,120]
[340860639,1729954239398,-500.0,0.00057534,120]
[340860640,1729954239408,-379.95088411,0.00057534,120]
[340860641,1729954239417,-500.0,0.00057534,120]
[340860642,1729954239427,-516.96,0.00057534,120]
[340860643,1729954239437,-713.46,0.00057534,120]
[340860644,1729954239448,-794.58,0.00057534,120]
[340860645,1729954239459,-2426.54,0.00057534,120]
[340860646,1729954239468,-1382.79,0.00057534,120]
[340860647,1729954239477,-500.0,0.00057534,120]
[340860648,1729954239486,-2462.02,0.00057534,120]
[340860649,1729954239495,-495.0665772,0.00057534,120]
[340860650,1729954239505,-500.0,0.00057534,21]
[340860652,1729954239514,-500.0,0.00057534,120]
[340860654,1729954239523,-799.22,0.00057534,120]
[340860656,1729954239533,-500.0,0.00057534,3]
[340860659,1729954239542,-543.0,0.00057534,120]
[340860663,1729954239552,-1479.17,0.00057534,120]
[340860665,1729954239561,-1101.66,0.00057534,120]
[340860667,1729954239570,-1000.0,0.00057534,120]
[340860669,1729954239579,-500.0,0.00057534,120]
[340860671,1729954239589,-623.2876053,0.00057534,120]
[340860673,1729954239599,-500.0,0.00057534,120]
[340860675,1729954239608,-500.0,0.00057534,120]
[340860677,1729954239617,-167.30639833,0.00057534,120]
[340860679,1729954239627,-834.96,0.00057534,120]
[340860681,1729954239637,-500.0,0.00057534,120]
[340860683,1729954239647,-493.91018,0.00057534,120]
[340860685,1729954239657,-500.0,0.00057534,120]
[340860687,1729954239667,-500.0,0.00057534,120]
[340860689,1729954239676,-500.0,0.00057534,120]
[340860691,1729954239685,-923.12,0.00057534,120]
[340860694,1729954239695,-500.0,0.00057534,120]
[340860695,1729954239704,-1000.0,0.00058,120]
[340860697,1729954239713,-500.0,0.00058082,120]
[340860699,1729954239723,-500.0,0.00058082,120]
[340860701,1729954239732,-300.11351477,0.00058082,120]
[340860704,1729954239741,-332.87950496,0.00058082,120]
[340860705,1729954239751,-500.0,0.00058082,120]
[340860708,1729954239760,-500.0,0.00058082,120]
[340860710,1729954239769,-516.96,0.00058082,120]
[340860712,1729954239778,-713.46,0.00058082,120]
[340860714,1729954239787,-794.58,0.00058082,120]
[340860716,1729954239796,-2426.54,0.00058082,120]
[340860718,1729954239805,-1382.79,0.00058082,120]
[340860720,1729954239814,-500.0,0.00058082,120]
[340860722,1729954239823,-2462.02,0.00058082,120]
[340860723,1729954239832,-500.0,0.00058082,21]
[340860724,1729954239841,-500.0,0.00058082,120]
[340860725,1729954239851,-799.22,0.00058082,120]
[340860727,1729954239860,-500.0,0.00058082,3]
[340860729,1729954239869,-543.0,0.00058082,120]
[340860731,1729954239879,-1479.17,0.00058082,120]
[340860733,1729954239894,-1101.66,0.00058082,120]
[340860735,1729954239903,-394.0034,0.00058082,120]
[340860737,1729954239912,-500.0,0.00058082,120]
[340860739,1729954239921,-500.0,0.00058082,120]
[340860741,1729954239930,-834.96,0.00058082,120]
[340860743,1729954239939,-500.0,0.00058082,120]
[340860745,1729954239948,-500.0,0.00058082,120]
[340860747,1729954239958,-500.0,0.00058082,120]
[340860749,1729954239967,-500.0,0.00058082,120]
[340860751,1729954239976,-923.12,0.00058082,120]
[340860753,1729954239985,-500.0,0.00058082,120]
[340860755,1729954239994,-921.62,0.00058208,2]
[340860757,1729954240003,-4736.48005373,0.00058574,15]
[340860759,1729954240012,-500.0,0.0005863,120]
[340860761,1729954240022,-500.0,0.0005863,120]
[340860763,1729954240031,-500.0,0.0005863,120]
[340860765,1729954240040,-500.0,0.0005863,120]
[340860767,1729954240049,-516.96,0.0005863,120]
[340860769,1729954240058,-713.46,0.0005863,120]
[340860771,1729954240067,-794.58,0.0005863,120]
[340860773,1729954240077,-2426.54,0.0005863,120]
[340860775,1729954240086,-1382.79,0.0005863,120]
[340860777,1729954240095,-500.0,0.0005863,120]
[340860779,1729954240104,-2462.02,0.0005863,120]
[340860781,1729954240113,-500.0,0.0005863,21]
[340860783,1729954240123,-500.0,0.0005863,120]
[340860784,1729954240133,-799.22,0.0005863,120]
[340860786,1729954240143,-500.0,0.0005863,3]
[340860787,1729954240153,-543.0,0.0005863,120]
[340860789,1729954240162,-1479.17,0.0005863,120]
[340860791,1729954240173,-1101.66,0.0005863,120]
[340860792,1729954240185,-500.0,0.0005863,120]
[340860793,1729954240195,-500.0,0.0005863,120]
[340860794,1729954240204,-834.96,0.0005863,120]
[340860795,1729954240213,-500.0,0.0005863,120]
[340860796,1729954240223,-500.0,0.0005863,120]
[340860797,1729954240232,-500.0,0.0005863,120]
[340860798,1729954240241,-500.0,0.0005863,120]
[340860799,1729954240250,-923.12,0.0005863,120]
[340860800,1729954240259,-500.0,0.0005863,120]
[340860801,1729954240269,-500.0,0.00058725,120]
[340860802,1729954240278,-210.0,0.0005874,30]
[340860803,1729954240288,-500.0,0.00058799,120]
[340860804,1729954240298,-500.0,0.00058799,120]
[340860805,1729954240307,-500.0,0.00058799,120]
[340860806,1729954240316,-500.0,0.00058799,120]
[340860807,1729954240325,-500.0,0.00058799,120]
[340860808,1729954240334,-500.0,0.00058799,120]
[340860809,1729954240343,-500.0,0.00058799,120]
[340860810,1729954240352,-500.0,0.00058799,120]
[340860811,1729954240361,-500.0,0.00058799,120]
[340860812,1729954240370,-500.0,0.00058799,120]
[340860813,1729954240380,-500.0,0.00058799,120]
[340860814,1729954240394,-500.0,0.00058799,120]
[340860816,1729954240404,-500.0,0.00058799,120]
[340860818,1729954240413,-500.0,0.00058799,120]
[340860819,1729954240423,-500.0,0.00058799,120]
[340860821,1729954240434,-500.0,0.00058799,120]
[340860823,1729954240443,-500.0,0.00058799,120]
[340860824,1729954240453,-500.0,0.00058799,120]
[340860826,1729954240466,-500.0,0.00058799,120]
[340860828,1729954240475,-500.0,0.00058799,120]
[340860837,1729954240581,-500.0,0.00058799,120]
[340860839,1729954240591,-500.0,0.00058799,120]
[340860840,1729954240600,-500.0,0.00058799,120]
[340860842,1729954240609,-500.0,0.00058799,120]
[340860844,1729954240619,-500.0,0.00058799,120]
[340860845,1729954240628,-500.0,0.00058799,120]
[340860847,1729954240639,-500.0,0.00058799,120]
[340860849,1729954240648,-500.0,0.00058799,120]
[340860850,1729954240657,-648.59,0.00058799,120]
[340860852,1729954240666,-80694.51102692,0.000588,2]
[340860854,1729954240675,-5835.98411898,0.000588,120]
[340860856,1729954240684,-171.07892214,0.0005881,74]
[340860858,1729954240694,-388.0,0.00058925,25]
[340860859,1729954240703,-153.57,0.00059,120]
[340860861,1729954240712,-153.57,0.00059,120]
[340860863,1729954240721,-153.57,0.00059,120]
[340860865,1729954240730,-153.57,0.00059,120]
[340860866,1729954240739,-524.39982164,0.00059168,56]
[340860868,1729954240748,-500.0,0.00059178,120]
[340860869,1729954240758,-500.0,0.00059178,120]
[340860870,1729954240767,-623.98377248,0.00059178,120]
[340860871,1729954240776,-500.0,0.00059178,120]
[340860872,1729954240785,-516.96,0.00059178,120]
[340860873,1729954240795,-713.46,0.00059178,120]
[340860874,1729954240804,-794.58,0.00059178,120]
[340860875,1729954240814,-2426.54,0.00059178,120]
[340860876,1729954240824,-1382.79,0.00059178,120]
[340860877,1729954240833,-500.0,0.00059178,120]
[340860878,1729954240843,-2462.02,0.00059178,120]
[340860879,1729954240852,-500.0,0.00059178,21]
[340860880,1729954240861,-500.0,0.00059178,120]
[340860881,1729954240871,-799.22,0.00059178,120]
[340860882,1729954240882,-500.0,0.00059178,3]
[340860883,1729954240891,-543.0,0.00059178,120]
[340860884,1729954240901,-1479.17,0.00059178,120]
[340860885,1729954240910,-1101.66,0.00059178,120]
[340860886,1729954240920,-500.0,0.00059178,120]
[340860887,1729954240929,-500.0,0.00059178,120]
[340860888,1729954240939,-834.96,0.00059178,120]
[340860889,1729954240948,-500.0,0.00059178,120]
[340860890,1729954240957,-500.0,0.00059178,120]
[340860891,1729954240966,-500.0,0.00059178,120]
[340860892,1729954240975,-500.0,0.00059178,120]
[340860893,1729954240984,-923.12,0.00059178,120]
[340860894,1729954240993,-500.0,0.00059178,120]
[340860895,1729954241003,-2520.47261892,0.0005921,2]
[340860896,1729954241012,-207.94,0.000597,120]
[340860897,1729954241025,-156.03,0.000597,120]
[340860898,1729954241034,-156.03,0.000597,120]
[340860899,1729954241043,-251.569719,0.000597,119]
[340860900,1729954241053,-150.0,0.000597,79]
[340860901,1729954241063,-500.0,0.00059726,120]
[340860902,1729954241072,-500.0,0.00059726,120]
[340860903,1729954241082,-500.0,0.00059726,120]
[340860904,1729954241091,-516.96,0.00059726,120]
[340860905,1729954241100,-713.46,0.00059726,120]
[340860906,1729954241109,-794.58,0.00059726,120]
[340860907,1729954241118,-2426.54,0.00059726,120]
[340860908,1729954241128,-1382.79,0.00059726,120]
[340860909,1729954241138,-500.0,0.00059726,120]
[340860910,1729954241147,-2462.02,0.00059726,120]
[340860911,1729954241156,-500.0,0.00059726,21]
[340860912,1729954241165,-500.0,0.00059726,120]
[340860913,1729954241175,-799.22,0.00059726,120]
[340860914,1729954241184,-500.0,0.00059726,3]
[340860915,1729954241194,-543.0,0.00059726,120]
[340860916,1729954241203,-1479.17,0.00059726,120]
[340860917,1729954241212,-1101.66,0.00059726,120]
[340860918,1729954241222,-500.0,0.00059726,120]
[340860919,1729954241231,-500.0,0.00059726,120]
[340860920,1729954241240,-834.96,0.00059726,120]
[340860921,1729954241251,-500.0,0.00059726,120]
[340860922,1729954241261,-500.0,0.00059726,120]
[340860923,1729954241271,-500.0,0.00059726,120]
[340860924,1729954241281,-500.0,0.00059726,120]
[340860925,1729954241291,-923.12,0.00059726,120]
[340860926,1729954241302,-500.0,0.00059726,120]
[340860927,1729954241314,-161.12785127,0.0005979,7]
[340860928,1729954241323,-218.8,0.00059799,120]
[340860929,1729954241332,-57638.77358379,0.000598,120]
[340860930,1729954241342,-77278.5230659,0.000598,120]
[340860931,1729954241353,-237.5887144,0.000598,120]
[340860932,1729954241363,-161.68230781,0.000598,30]
[340860933,1729954241372,-2000.0,0.000598,15]
[340860934,1729954241382,-200.0,0.000598,15]
[340860935,1729954241391,-5835.98411898,0.000598,120]
[340860936,1729954241400,-158.1186881,0.00059803,2]
[340860937,1729954241409,-1451.8398646,0.00059803,2]
[340860938,1729954241419,-486.5633647,0.00059803,2]
[340860939,1729954241428,-5215.4632315,0.00059803,2]
[340860940,1729954241437,-157.3483949,0.00059844,2]
[340860941,1729954241447,-167.0,0.00059885,2]
[340860942,1729954241458,-508.09,0.00059889,120]
[340860943,1729954241468,-500.13565,0.00059896,120]
[340860944,1729954241478,-263.84486726,0.000599,7]
[340860945,1729954241487,-14985.65595574,0.000599,30]
[340860946,1729954241496,-690.14225268,0.000599,120]
[340860947,1729954241505,-150.0,0.000599,40]
[340860948,1729954241514,-281.51289782,0.000599,2]
[340860949,1729954241523,-152.07524332,0.000599,2]
[340860950,1729954241532,-4877.48398633,0.000599,2]
[340860951,1729954241541,-7168.41596113,0.000599,2]
[340860952,1729954241551,-300.40129438,0.000599,2]
[340860953,1729954241560,-185.3540101,0.00059959,2]
[340860954,1729954241570,-212.5893321,0.00059959,2]
[340860955,1729954241579,-239.824654,0.00059959,2]
[340860956,1729954241588,-267.059976,0.00059959,2]
[340860957,1729954241598,-294.295298,0.00059959,2]
[340860958,1729954241607,-1693.9091693,0.00059959,2]
[340860959,1729954241616,-1935.978474,0.00059959,2]
[340860960,1729954241625,-2178.0477788,0.00059959,2]
[340860961,1729954241636,-2420.1170835,0.00059959,2]
[340860962,1729954241645,-2662.1863882,0.00059959,2]
[340860963,1729954241654,-157.3483949,0.00059959,2]
[340860964,1729954241663,-157.3483949,0.00059959,2]
[340860965,1729954241672,-157.3483949,0.00059959,2]
[340860966,1729954241682,-157.3483949,0.00059959,2]
[340860967,1729954241690,-157.3483949,0.00059959,2]
[340860968,1729954241699,-486.5633647,0.00059959,2]
[340860969,1729954241709,-486.5633647,0.00059959,2]
[340860970,1729954241718,-486.5633647,0.00059959,2]
[340860971,1729954241727,-486.5633647,0.00059959,2]
[340860972,1729954241736,-486.5633647,0.00059959,2]
[340860973,1729954241745,-4236.9477342,0.00059959,2]
[340860974,1729954241755,-3258.432237,0.00059959,2]
[340860975,1729954241764,-2279.9167398,0.00059959,2]
[340860976,1729954241773,-1301.4012425,0.00059959,2]
[340860977,1729954241782,-322.8857453,0.00059959,2]
[340860978,1729954241792,-356.56256,0.0005996,120]
[340860979,1729954241801,-719.28150279,0.00059986,120]
[340860980,1729954241810,-150.0,0.00059986,120]
[340860981,1729954241819,-22083.36691197,0.00059987,60]
[340860982,1729954241828,-84628.65605635,0.00059987,64]
[340860983,1729954241837,-442266.45560459,0.00059987,120]
[340860984,1729954241846,-20410.21731038,0.00059987,120]
[340860985,1729954241855,-151.0,0.00059987,120]
[340860986,1729954241864,-151.0,0.00059987,120]
[340860987,1729954241874,-153.774804,0.00059987,120]
[340860988,1729954241883,-154.256022,0.00059987,120]
[340860989,1729954241892,-151.0,0.00059987,120]
[340860990,1729954241901,-151.0,0.00059987,120]
[340860991,1729954241910,-153.762841,0.00059987,120]
[340860992,1729954241920,-151.0,0.00059987,120]
[340860993,1729954241929,-151.0,0.00059987,120]
[340860994,1729954241938,-151.0,0.00059987,120]
[340860995,1729954241947,-151.0,0.00059987,120]
[340860996,1729954241956,-152.223439,0.00059987,30]
[340860997,1729954241966,-229.965269,0.00059987,120]
[340860998,1729954241975,-229.965269,0.00059987,120]
[340860999,1729954241984,-153.011427,0.00059987,120]
[340861000,1729954241993,-151.0,0.00059987,120]
[340861001,1729954242002,-202.590808,0.00059987,120]
[340861002,1729954242011,-180.039292,0.00059987,120]
[340861003,1729954242020,-202.590808,0.00059987,120]
[340861004,1729954242030,-180.039292,0.00059987,120]
[340861005,1729954242039,-151.0,0.00059987,120]
[340861006,1729954242048,-151.0,0.00059987,120]
[340861007,1729954242058,-151.0,0.00059987,120]
[340861008,1729954242067,-151.0,0.00059987,120]
[340861009,1729954242077,-151.0,0.00059987,120]
[340861010,1729954242086,-3192.581934,0.00059987,120]
[340861011,1729954242095,-151.0,0.00059987,120]
[340861012,1729954242104,-151.0,0.00059987,7]
[340861013,1729954242114,-151.0,0.00059987,120]
[340861014,1729954242123,-151.0,0.00059987,120]
[340861015,1729954242133,-151.0,0.00059987,120]
[340861016,1729954242142,-151.0,0.00059987,120]
[340861017,1729954242152,-241.78717,0.00059987,120]
[340861018,1729954242162,-241.78717,0.00059987,120]
[340861019,1729954242172,-151.0,0.00059987,120]
[340861020,1729954242181,-151.0,0.00059987,120]
[340861021,1729954242191,-151.0,0.00059987,120]
[340861022,1729954242200,-151.0,0.00059987,110]
[340861023,1729954242209,-151.0,0.00059987,120]
[340861024,1729954242218,-151.0,0.00059987,120]
[340861025,1729954242227,-151.0,0.00059987,120]
[340861026,1729954242236,-271.759106,0.00059987,120]
[340861027,1729954242245,-271.759106,0.00059987,120]
[340861028,1729954242255,-151.0,0.00059987,120]
[340861029,1729954242264,-151.0,0.00059987,120]
[340861030,1729954242273,-151.0,0.00059987,120]
[340861031,1729954242283,-151.0,0.00059987,120]
[340861033,1729954242292,-151.0,0.00059987,120]
[340861034,1729954242301,-151.0,0.00059987,120]
[340861035,1729954242310,-428.177904,0.00059987,120]
[340861036,1729954242319,-161.12785127,0.0005999,7]
[340861037,1729954242328,-10000.0,0.0006,60]
[340861038,1729954242338,-774260.93499771,0.0006,120]
[340861039,1729954242398,-169.28172345,0.000599,120]
[340861040,1729954242407,-428.177904,0.00059987,120]
[340861041,1729954242416,-3716.90253456,0.0006,120]
[340861042,1729954242428,-4019.09127962,0.0006,120]
[340861044,1729954242439,-315.6,0.0006,120]
[340861045,1729954242449,-2361.0661011,0.0006,120]
[340861046,1729954242460,-215326.40508701,0.0006,120]
[340861047,1729954242469,-2090.5300603,0.0006,15]
[340861048,1729954242479,-496.08968461,0.0006,120]
[340861049,1729954242488,-1225.385782,0.0006,120]
[340861050,1729954242497,-27248.50105842,0.0006,30]
[340861052,1729954242506,-515.81450447,0.0006,120]
[340861053,1729954242515,-23789.66841254,0.0006,120]
[340861054,1729954242525,-17598.02386412,0.0006,120]
[340861055,1729954242534,-41733.88063372,0.0006,120]
[340861056,1729954242544,-332.6270986,0.0006,120]
[340861057,1729954242556,-2000.0,0.0006,120]
[340861058,1729954242566,-166.75278321,0.0006,32]
[340861059,1729954242575,-1804.57089547,0.0006,120]
[340861060,1729954242584,-3152.41,0.0006,120]
[340861061,1729954242594,-200315.31859198,0.0006,120]
[340861062,1729954242606,-20685.37614258,0.0006,120]
[340861063,1729954242617,-6012.0,0.0006,120]
[340861064,1729954242628,-4583.90288796,0.0006,120]
[340861065,1729954242885,-500.0,0.00056505,120]
[340861066,1729954242894,-65.76868451,0.00057053,120]
[340861071,1729954245654,-254.49999588,0.00054794,120]
[340861072,1729954245668,-245.50000412,0.00054794,120]
[340861073,1729954245679,-500.0,0.00055342,120]
[340861074,1729954245689,-434.23131549,0.00057053,120]
[340861075,1729954245699,-500.0,0.00057601,120]
[340861076,1729954245710,-500.0,0.00058149,120]
[340861077,1729954245721,-250.0,0.00058654,120]
[340861078,1729954245731,-169.28172345,0.000599,120]
[340861079,1729954245740,-151.0,0.00059987,120]
[340861080,1729954245750,-151.0,0.00059987,120]
[340861081,1729954245760,-1575.69695694,0.0006,120]
[340861082,1729954245789,-39878.97389791,0.0006,120]
[340861085,1729954463517,151.0,0.00043346,30]
[340861086,1729954501017,157.82,0.00015342,2]
[340861088,1729954595223,250.0,0.00015,2]
[340861089,1729954720798,195.0,0.00043328,30]
[340861090,1729954878744,176.97,0.00019178,2]
[340861091,1729955194723,253.99539278,0.00017433,2]
[340861111,1729955431667,-3681.16769562,0.00025224,2]
[340861114,1729955431715,-667.83,0.00025224,2]
[340861115,1729955431729,-2397.6432795,0.00025224,2]
[340861116,1729955431760,-1555.63554671,0.00025224,2]
[340861117,1729955431772,-2175.17311323,0.00025224,2]
[340861118,1729955431781,-1021.18174766,0.00035516,2]
[340861119,1729955431791,-157.82,0.00035616,2]
[340861120,1729955431800,-230.0,0.000365,2]
[340861121,1729955431809,-750.0,0.00037182,2]
[340861122,1729955431819,-14039.37793353,0.00037183,2]
[340861123,1729955431830,-3485.67194309,0.00037183,2]
[340861124,1729955431841,-377.36154208,0.00037183,2]
[340861125,1729955431852,-32097.5885813,0.00037183,2]
[340861126,1729955431862,-943.01,0.00037183,2]
[340861127,1729955431871,-2242.62,0.00037183,10]
[340861128,1729955431881,-200.0,0.00038656,2]
[340861129,1729955431890,-150.0,0.000388,120]
[340861130,1729955431899,-150.0,0.0003886,7]
[340861131,1729955431908,-23900.0,0.0003886,2]
[340861132,1729955431917,-720.65,0.0003899,2]
[340861133,1729955431926,-12008.75508092,0.00039141,2]
[340861134,1729955431936,-250.0,0.00039304,120]
[340861135,1729955431946,-943.01,0.00039447,2]
[340861136,1729955431955,-181.15,0.00039515,2]
[340861137,1729955431964,-905.28,0.0003955,2]
[340861138,1729955431973,-408.26,0.0003955,30]
[340861139,1729955431982,-673.9665,0.0003977,30]
[340861140,1729955431992,-291.235,0.0003986,56]
[340861141,1729955432001,-173.839,0.0003986,56]
[340861142,1729955432010,-299.99,0.0003986,120]
[340861143,1729955432020,-2500.0,0.0003986,2]
[340861144,1729955432029,-4262.83204841,0.00039873,15]
[340861145,1729955432038,-168.69631345,0.00039873,2]
[340861146,1729955432047,-8956.41995354,0.0003995,8]
[340861147,1729955432056,-100000.0,0.0003996,2]
[340861148,1729955432066,-500.0,0.0003996,2]
[340861149,1729955432075,-19888.7321837,0.0003996,2]
[340861152,1729955432087,-6793.082792,0.0003996,2]
[340861154,1729955432097,-2039.01,0.0003996,2]
[340861156,1729955432111,-700.0,0.0003996,2]
[340861158,1729955432122,-1333.06,0.0003996,2]
[340861162,1729955432133,-6337.85397096,0.0003996,2]
[340861166,1729955432144,-95569.74575334,0.0003996,2]
[340861169,1729955432153,-500.0,0.00039973,5]
[340861172,1729955432162,-481.79837513,0.00039973,5]
[340861175,1729955432171,-871.78,0.00039993,2]
[340861177,1729955432179,-319.7791311,0.00040304,2]
[340861180,1729955432189,-154.91,0.00040306,2]
[340861183,1729955432198,-201.56753382,0.00040373,16]
[340861185,1729955432207,-269.6311147,0.00040394,2]
[340861187,1729955432216,-500.0,0.00040403,31]
[340861189,1729955432225,-374.93510774,0.00040403,31]
[340861191,1729955432235,-500.0,0.00040403,31]
[340861193,1729955432245,-500.0,0.00040403,31]
[340861195,1729955432254,-500.0,0.00040403,31]
[340861197,1729955432262,-500.0,0.00040403,31]
[340861199,1729955432271,-500.0,0.00040403,31]
[340861200,1729955432280,-500.0,0.00040403,31]
[340861202,1729955432290,-179128.399071,0.00040404,8]
[340861204,1729955432299,-122404.193482,0.00040404,8]
[340861206,1729955432308,-200.0,0.00040413,2]
[340861208,1729955432317,-233.8306626,0.00040413,31]
[340861210,1729955432326,-500.0,0.00040413,31]
[340861212,1729955432335,-322.71201586,0.00040413,31]
[340861214,1729955432344,-190.70810827,0.00040413,31]
[340861216,1729955432353,-97346.61558054,0.00040414,2]
[340861218,1729955432365,-66855.0,0.00040414,2]
[340861220,1729955432379,-1628.4376726,0.00040414,2]
[340861223,1729955432393,-66827.89802383,0.00040414,2]
[340861386,1729955437721,-405.6174,0.0003986,2]
[340861387,1729955437732,-41401.38733864,0.00040414,2]
[340861388,1729955437744,-500.0,0.00040414,2]
[340861389,1729955437860,-3151.88708974,0.00040414,2]
[340861390,1729955437872,-1743.66113836,0.00040414,2]
[340861391,1729955437883,-253.34417042,0.00040414,2]
[340861392,1729955437895,-1353.58223,0.00040414,2]
[340861393,1729955437907,-1084.4175613,0.00040414,2]
[340861394,1729955437960,-162.53382216,0.00040414,2]
[340861395,1729955437972,-13034.77177924,0.00040414,2]
[340861396,1729955437983,-2238.99168339,0.00040414,2]
[340861397,1729955437995,-3735.142385,0.00040414,2]
[340861398,1729955438006,-792.98054725,0.00040414,2]
[340861399,1729955438053,-12615.41387827,0.00040414,2]
[340861400,1729955438065,-46193.65480527,0.00040414,2]
[340861401,1729955438074,-500.0,0.00040473,5]
[340861402,1729955438083,-500.0,0.00040473,5]
[340861403,1729955438092,-301.66106742,0.00040473,5]
[340861404,1729955438102,-500.0,0.00040473,2]
[340861405,1729955438111,-150.31,0.00041096,2]
[340861406,1729955438119,-157.0,0.00041096,2]
[340861407,1729955438128,-8956.41995354,0.00041117,8]
[340861408,1729955438137,-7807.34744616,0.00041117,8]
[340861409,1729955438148,-580.70497735,0.00041117,8]
[340861410,1729955438159,-1027.65476742,0.00041117,8]
[340861411,1729955438168,-112.81923258,0.00041323,8]
[340861412,1729955438179,-1056.81499998,0.00041323,8]
[340861413,1729955438190,-8246.07295837,0.00041323,8]
[340861414,1729955438199,-8956.41995354,0.00041332,8]
[340861415,1729955438208,-1000.0,0.00041342,10]
[340861416,1729955438218,-943.01,0.00041711,2]
[340861417,1729955438227,-500.0,0.00041842,10]
[340861418,1729955438236,-1000.0,0.00041842,2]
[340861419,1729955438246,-4262.83204836,0.00042209,15]
[340861420,1729955438255,-214.53702839,0.00042373,14]
[340861421,1729955438264,-182.1,0.00042502,2]
[340861422,1729955438273,-150.0,0.000433,2]
[340861423,1729955438283,-1000.84018855,0.000433,31]
[340861424,1729955438292,-406.3281723,0.00043346,10]